[Event "*** Titled Tuesday Blitz"]
[Site "Chess.com"]
[Date "2020.10.27"]
[Round "4"]
[White "Borsuk_Konstantin"]
[Black "ajian"]
[Result "1-0"]
[WhiteElo "2570"]
[BlackElo "2345"]
[TimeControl "180+1"]
[EndTime "10:35:58 PDT"]
[Termination "Borsuk_Konstantin won by resignation"]

1. d4 {[%clk 0:03:00.9]} 1... Nf6 {[%clk 0:02:59.9]} 2. c4 {[%clk 0:03:01.3]}
2... e6 {[%clk 0:03:00]} 3. Nc3 {[%clk 0:03:01.9]} 3... d5 {[%clk 0:03:00.4]} 4.
cxd5 {[%clk 0:03:01.6]} 4... exd5 {[%clk 0:03:00.4]} 5. Bg5 {[%clk 0:03:00.9]}
5... c6 {[%clk 0:02:59.9]} 6. e3 {[%clk 0:03:01.2]} 6... Be7 {[%clk 0:02:58.9]}
7. Bd3 {[%clk 0:03:01]} 7... O-O {[%clk 0:02:59.3]} 8. Nge2 {[%clk 0:03:00.6]}
8... Nbd7 {[%clk 0:02:59.8]} 9. Qc2 {[%clk 0:03:00.3]} 9... Re8 {[%clk
0:02:58.9]} 10. f3 {[%clk 0:02:59.3]} 10... Nf8 {[%clk 0:02:52]} 11. Bh4 {[%clk
0:02:59.1]} 11... g6 {[%clk 0:02:24.6]} 12. O-O {[%clk 0:02:56.5]} 12... Ne6
{[%clk 0:02:21.3]} 13. Rad1 {[%clk 0:02:53.5]} 13... c5 {[%clk 0:02:03.8]} 14.
Bb5 {[%clk 0:02:53.1]} 14... Bd7 {[%clk 0:02:00.6]} 15. Bxd7 {[%clk 0:02:50.2]}
15... Qxd7 {[%clk 0:01:59.2]} 16. dxc5 {[%clk 0:02:43.4]} 16... Nxc5 {[%clk
0:01:44.8]} 17. Bxf6 {[%clk 0:02:39.3]} 17... Bxf6 {[%clk 0:01:45.7]} 18. Nxd5
{[%clk 0:02:39.4]} 18... Qc6 {[%clk 0:00:59.6]} 19. Nxf6+ {[%clk 0:02:37.1]}
19... Qxf6 {[%clk 0:01:00.5]} 20. Qxc5 {[%clk 0:02:36.9]} 20... Qxb2 {[%clk
0:00:59.8]} 21. Nf4 {[%clk 0:02:28.1]} 21... Qxa2 {[%clk 0:00:51.2]} 22. Nd5
{[%clk 0:02:27.5]} 22... Qb2 {[%clk 0:00:42.9]} 23. Rb1 {[%clk 0:02:22.6]} 23...
Qe5 {[%clk 0:00:41.3]} 24. Rxb7 {[%clk 0:02:16.2]} 24... Rad8 {[%clk 0:00:38.6]}
25. Ne7+ {[%clk 0:02:13.6]} 25... Rxe7 {[%clk 0:00:29.7]} 26. Qxe7 {[%clk
0:02:12.9]} 26... Qxe7 {[%clk 0:00:28.4]} 27. Rxe7 {[%clk 0:02:12.5]} 27... Ra8
{[%clk 0:00:29.3]} 28. Ra1 {[%clk 0:02:11.9]} 28... a5 {[%clk 0:00:30.2]} 29.
Ra4 {[%clk 0:02:11.9]} 1-0

[Event "*** Titled Tuesday Blitz"]
[Site "Chess.com"]
[Date "2020.10.27"]
[Round "4"]
[White "IngOscarArdila"]
[Black "GjakanTati"]
[Result "0-1"]
[WhiteElo "2173"]
[BlackElo "2607"]
[TimeControl "180+1"]
[EndTime "10:36:03 PDT"]
[Termination "GjakanTati won by resignation"]

1. d4 {[%clk 0:03:00.9]} 1... Nf6 {[%clk 0:02:58.3]} 2. c4 {[%clk 0:03:01]} 2...
g6 {[%clk 0:02:56.3]} 3. Nc3 {[%clk 0:03:00.5]} 3... Bg7 {[%clk 0:02:56.9]} 4.
e4 {[%clk 0:03:00.3]} 4... d6 {[%clk 0:02:57.3]} 5. Nf3 {[%clk 0:03:00.5]} 5...
O-O {[%clk 0:02:57.8]} 6. Be2 {[%clk 0:03:00.8]} 6... e5 {[%clk 0:02:58.4]} 7.
d5 {[%clk 0:03:00.7]} 7... a5 {[%clk 0:02:56.3]} 8. O-O {[%clk 0:02:58.7]} 8...
Na6 {[%clk 0:02:56.8]} 9. Bg5 {[%clk 0:02:58.5]} 9... Qe8 {[%clk 0:02:56.4]} 10.
Qc2 {[%clk 0:02:51.4]} 10... Nh5 {[%clk 0:02:54.8]} 11. g3 {[%clk 0:02:47.6]}
11... Bh3 {[%clk 0:02:49]} 12. Rfe1 {[%clk 0:02:46.8]} 12... f5 {[%clk
0:02:49.1]} 13. Nh4 {[%clk 0:02:37.5]} 13... f4 {[%clk 0:02:41.8]} 14. Bxh5
{[%clk 0:02:34.9]} 14... gxh5 {[%clk 0:02:40.3]} 15. gxf4 {[%clk 0:02:16.2]}
15... h6 {[%clk 0:02:30.6]} 16. Qd3 {[%clk 0:02:09.4]} 16... Bd7 {[%clk
0:02:18.9]} 17. Qg3 {[%clk 0:02:02.4]} 17... hxg5 {[%clk 0:02:18.7]} 18. fxg5
{[%clk 0:02:02.5]} 18... Rf4 {[%clk 0:02:13.1]} 19. f3 {[%clk 0:02:01.4]} 19...
Qf7 {[%clk 0:02:07.4]} 20. Ne2 {[%clk 0:01:59.6]} 20... Rxh4 {[%clk 0:02:04]}
21. Qxh4 {[%clk 0:01:58.7]} 21... Qxf3 {[%clk 0:02:04.6]} 22. Ng3 {[%clk
0:01:45.3]} 22... Rf8 {[%clk 0:01:59.5]} 23. Qxh5 {[%clk 0:01:34.3]} 23... Bg4
{[%clk 0:01:56.5]} 24. Rf1 {[%clk 0:00:44.8]} 24... Qe3+ {[%clk 0:01:54.9]} 25.
Kg2 {[%clk 0:00:44.2]} 25... Bxh5 {[%clk 0:01:53.7]} 26. Nxh5 {[%clk 0:00:44.4]}
26... Qe2+ {[%clk 0:01:53.3]} 27. Kg1 {[%clk 0:00:42.3]} 0-1

[Event "*** Titled Tuesday Blitz"]
[Site "Chess.com"]
[Date "2020.10.27"]
[Round "4"]
[White "katchesskat"]
[Black "ailime26"]
[Result "1-0"]
[WhiteElo "2236"]
[BlackElo "1889"]
[TimeControl "180+1"]
[EndTime "10:36:04 PDT"]
[Termination "katchesskat won by resignation"]

1. c4 {[%clk 0:03:00.9]} 1... e6 {[%clk 0:02:54.4]} 2. Nf3 {[%clk 0:02:58.7]}
2... d5 {[%clk 0:02:54.3]} 3. e3 {[%clk 0:02:56.5]} 3... Be7 {[%clk 0:02:51]} 4.
a3 {[%clk 0:02:56.8]} 4... Nf6 {[%clk 0:02:41.4]} 5. Qc2 {[%clk 0:02:56]} 5...
O-O {[%clk 0:02:25.9]} 6. b4 {[%clk 0:02:53.6]} 6... b6 {[%clk 0:02:18.3]} 7.
Bb2 {[%clk 0:02:52.3]} 7... Bb7 {[%clk 0:02:04.4]} 8. h4 {[%clk 0:02:48.7]} 8...
c5 {[%clk 0:01:42.5]} 9. b5 {[%clk 0:02:47.9]} 9... Nbd7 {[%clk 0:01:36.2]} 10.
Nc3 {[%clk 0:02:36.5]} 10... e5 {[%clk 0:01:20.2]} 11. cxd5 {[%clk 0:02:35.9]}
11... Nxd5 {[%clk 0:01:19.5]} 12. Ne4 {[%clk 0:02:34.7]} 12... Qc7 {[%clk
0:01:15.4]} 13. Neg5 {[%clk 0:02:31.5]} 13... N7f6 {[%clk 0:01:07]} 14. Bxe5
{[%clk 0:02:20.4]} 14... Qd7 {[%clk 0:01:02.8]} 15. Bc4 {[%clk 0:02:18.2]} 15...
a6 {[%clk 0:00:59.2]} 16. Bxd5 {[%clk 0:02:15.3]} 16... Bxd5 {[%clk 0:00:52.6]}
17. Bxf6 {[%clk 0:02:14.6]} 17... g6 {[%clk 0:00:43.1]} 18. Bb2 {[%clk
0:02:11.8]} 18... axb5 {[%clk 0:00:37.4]} 19. h5 {[%clk 0:02:08.7]} 19... Bxf3
{[%clk 0:00:33.2]} 20. hxg6 {[%clk 0:02:02]} 20... fxg6 {[%clk 0:00:26]} 21.
Qxg6+ {[%clk 0:02:00.6]} 1-0

[Event "*** Titled Tuesday Blitz"]
[Site "Chess.com"]
[Date "2020.10.27"]
[Round "4"]
[White "Azerichess"]
[Black "swimmerchess"]
[Result "1-0"]
[WhiteElo "2991"]
[BlackElo "2801"]
[TimeControl "180+1"]
[EndTime "10:36:13 PDT"]
[Termination "Azerichess won by resignation"]

1. d4 {[%clk 0:03:00.9]} 1... Nf6 {[%clk 0:03:00.1]} 2. c4 {[%clk 0:03:01.3]}
2... e6 {[%clk 0:02:59.8]} 3. Nc3 {[%clk 0:03:01.8]} 3... Bb4 {[%clk 0:02:59.8]}
4. Qc2 {[%clk 0:03:02.4]} 4... d5 {[%clk 0:02:59.3]} 5. cxd5 {[%clk 0:03:01.9]}
5... exd5 {[%clk 0:03:00.2]} 6. Bg5 {[%clk 0:03:00.9]} 6... h6 {[%clk
0:02:58.6]} 7. Bh4 {[%clk 0:03:00.4]} 7... c5 {[%clk 0:02:58.5]} 8. dxc5 {[%clk
0:02:58.2]} 8... g5 {[%clk 0:02:55.8]} 9. Bg3 {[%clk 0:02:58.2]} 9... Nc6 {[%clk
0:02:51.4]} 10. e3 {[%clk 0:02:48.3]} 10... Ne4 {[%clk 0:02:34]} 11. Bd3 {[%clk
0:02:35.4]} 11... Nxg3 {[%clk 0:02:01.1]} 12. hxg3 {[%clk 0:02:36.3]} 12... d4
{[%clk 0:02:02]} 13. exd4 {[%clk 0:02:36.8]} 13... Qxd4 {[%clk 0:02:02.9]} 14.
Ne2 {[%clk 0:02:37]} 14... Qxc5 {[%clk 0:02:02.9]} 15. O-O-O {[%clk 0:02:31.3]}
15... Be6 {[%clk 0:02:02.5]} 16. Be4 {[%clk 0:02:25.4]} 16... Bxc3 {[%clk
0:02:00.5]} 17. Nxc3 {[%clk 0:02:14.5]} 17... Nb4 {[%clk 0:01:53.7]} 18. Qa4+
{[%clk 0:02:09.7]} 18... Kf8 {[%clk 0:01:53.7]} 19. Kb1 {[%clk 0:02:07.9]} 19...
Kg7 {[%clk 0:01:52]} 20. a3 {[%clk 0:02:01.9]} 20... Nc6 {[%clk 0:01:51.8]} 21.
Bxc6 {[%clk 0:02:01.6]} 21... bxc6 {[%clk 0:01:51.5]} 22. Ne4 {[%clk 0:01:58]}
22... Qe5 {[%clk 0:01:51.4]} 23. f4 {[%clk 0:01:44.3]} 23... Qf5 {[%clk
0:01:12.4]} 24. Qd4+ {[%clk 0:01:41.8]} 24... f6 {[%clk 0:01:07.4]} 25. fxg5
{[%clk 0:01:25.9]} 25... hxg5 {[%clk 0:01:08.3]} 26. Rhf1 {[%clk 0:01:25.6]}
26... Rhg8 {[%clk 0:01:05.5]} 27. Rxf5 {[%clk 0:01:21.2]} 1-0

[Event "*** Titled Tuesday Blitz"]
[Site "Chess.com"]
[Date "2020.10.27"]
[Round "4"]
[White "S2PAc"]
[Black "Yashasd1995"]
[Result "1-0"]
[WhiteElo "2812"]
[BlackElo "2536"]
[TimeControl "180+1"]
[EndTime "10:36:14 PDT"]
[Termination "S2PAc won by resignation"]

1. d4 {[%clk 0:02:58.2]} 1... Nf6 {[%clk 0:02:59.3]} 2. g3 {[%clk 0:02:58.1]}
2... e6 {[%clk 0:02:57.3]} 3. Bg2 {[%clk 0:02:55.8]} 3... Be7 {[%clk 0:02:57.5]}
4. Nf3 {[%clk 0:02:56.7]} 4... O-O {[%clk 0:02:56.8]} 5. O-O {[%clk 0:02:57.3]}
5... d5 {[%clk 0:02:55.8]} 6. c4 {[%clk 0:02:57.4]} 6... c6 {[%clk 0:02:53.9]}
7. Nc3 {[%clk 0:02:56.8]} 7... dxc4 {[%clk 0:02:52.3]} 8. Ne5 {[%clk 0:02:54.3]}
8... a5 {[%clk 0:02:32.3]} 9. Nxc4 {[%clk 0:02:51.4]} 9... b5 {[%clk 0:02:29.8]}
10. Ne5 {[%clk 0:02:51.5]} 10... Bb7 {[%clk 0:02:29.5]} 11. Nxb5 {[%clk
0:02:51.2]} 11... Qb6 {[%clk 0:02:25.8]} 12. Nc3 {[%clk 0:02:46.5]} 12... Rd8
{[%clk 0:02:25.5]} 13. Be3 {[%clk 0:02:36.9]} 13... Nd5 {[%clk 0:02:20.4]} 14.
Na4 {[%clk 0:02:28.6]} 14... Qb5 {[%clk 0:02:15.8]} 15. Bd2 {[%clk 0:02:22.3]}
15... Nd7 {[%clk 0:02:07]} 16. e4 {[%clk 0:02:19.3]} 16... Nxe5 {[%clk
0:01:56.6]} 17. exd5 {[%clk 0:02:19.4]} 17... Nc4 {[%clk 0:01:54.3]} 18. Nc3
{[%clk 0:02:08.2]} 18... Qxb2 {[%clk 0:01:51.9]} 19. dxc6 {[%clk 0:02:08.6]}
19... Bxc6 {[%clk 0:01:43.7]} 20. Bxc6 {[%clk 0:02:09.5]} 20... Rac8 {[%clk
0:01:43.3]} 21. d5 {[%clk 0:01:51.1]} 21... Nxd2 {[%clk 0:01:37.8]} 22. Na4
{[%clk 0:01:49.3]} 22... Qd4 {[%clk 0:01:32.1]} 23. Re1 {[%clk 0:01:48.1]} 23...
exd5 {[%clk 0:01:21.3]} 24. Rxe7 {[%clk 0:01:45.4]} 24... Rxc6 {[%clk
0:01:20.5]} 25. Rb1 {[%clk 0:01:39.4]} 25... Rf6 {[%clk 0:01:16]} 26. Re2 {[%clk
0:01:31.5]} 26... h5 {[%clk 0:01:11.9]} 27. Rxd2 {[%clk 0:01:30.2]} 27... Qe4
{[%clk 0:01:07.9]} 28. Nc3 {[%clk 0:01:27.1]} 28... Qc4 {[%clk 0:01:07.2]} 29.
Nxd5 {[%clk 0:01:25.5]} 29... Rfd6 {[%clk 0:01:06.6]} 30. Ne7+ {[%clk
0:01:25.7]} 1-0

[Event "*** Titled Tuesday Blitz"]
[Site "Chess.com"]
[Date "2020.10.27"]
[Round "4"]
[White "Chamal_Gedgafov"]
[Black "Tenamu"]
[Result "0-1"]
[WhiteElo "2163"]
[BlackElo "2407"]
[TimeControl "180+1"]
[EndTime "10:36:15 PDT"]
[Termination "Tenamu won by resignation"]

1. d4 {[%clk 0:03:00.9]} 1... Nf6 {[%clk 0:02:55.5]} 2. c4 {[%clk 0:02:58.9]}
2... e6 {[%clk 0:02:55.3]} 3. Nf3 {[%clk 0:02:56.9]} 3... c5 {[%clk 0:02:55.9]}
4. d5 {[%clk 0:02:53.7]} 4... exd5 {[%clk 0:02:56.8]} 5. cxd5 {[%clk 0:02:53.8]}
5... d6 {[%clk 0:02:57.6]} 6. Nc3 {[%clk 0:02:54.2]} 6... g6 {[%clk 0:02:57.7]}
7. Nd2 {[%clk 0:02:54.2]} 7... Bg7 {[%clk 0:02:57.2]} 8. Nc4 {[%clk 0:02:54.1]}
8... O-O {[%clk 0:02:57.4]} 9. Bf4 {[%clk 0:02:53.2]} 9... Ne8 {[%clk
0:02:56.6]} 10. e4 {[%clk 0:02:50.6]} 10... a6 {[%clk 0:02:54]} 11. a4 {[%clk
0:02:49.9]} 11... Qe7 {[%clk 0:02:53.8]} 12. Bd3 {[%clk 0:02:39.8]} 12... f5
{[%clk 0:02:53.1]} 13. Qd2 {[%clk 0:02:24]} 13... fxe4 {[%clk 0:02:45]} 14. Nxe4
{[%clk 0:02:23]} 14... Bf5 {[%clk 0:02:44.6]} 15. O-O {[%clk 0:02:05.9]} 15...
Bxe4 {[%clk 0:02:37.7]} 16. Rfe1 {[%clk 0:02:05.1]} 16... Nf6 {[%clk 0:02:28.4]}
17. f3 {[%clk 0:01:37.7]} 17... Nxd5 {[%clk 0:02:21.8]} 18. Rxe4 {[%clk
0:01:37.2]} 18... Qd7 {[%clk 0:02:21]} 19. Bxd6 {[%clk 0:01:31.9]} 19... Rd8
{[%clk 0:02:17.8]} 20. Bc2 {[%clk 0:01:19.9]} 20... Nb4 {[%clk 0:02:13]} 21. Bb3
{[%clk 0:01:15.7]} 21... Kh8 {[%clk 0:02:08.5]} 22. Re7 {[%clk 0:01:13.7]} 22...
Qxe7 {[%clk 0:02:06.7]} 23. Bxe7 {[%clk 0:01:12.7]} 23... Rxd2 {[%clk
0:02:06.5]} 24. Nxd2 {[%clk 0:01:13.3]} 24... Bxb2 {[%clk 0:02:06.7]} 25. Rb1
{[%clk 0:01:03.4]} 25... Bd4+ {[%clk 0:02:06.6]} 26. Kh1 {[%clk 0:01:00.2]}
26... N8c6 {[%clk 0:02:06.5]} 27. Ne4 {[%clk 0:00:50.2]} 27... b6 {[%clk
0:02:02.7]} 28. Rd1 {[%clk 0:00:44.9]} 28... Nxe7 {[%clk 0:02:01.5]} 0-1

[Event "*** Titled Tuesday Blitz"]
[Site "Chess.com"]
[Date "2020.10.27"]
[Round "4"]
[White "ChelsieMonica"]
[Black "xberli"]
[Result "0-1"]
[WhiteElo "2342"]
[BlackElo "2537"]
[TimeControl "180+1"]
[EndTime "10:36:22 PDT"]
[Termination "xberli won by resignation"]

1. c4 {[%clk 0:03:00]} 1... Nf6 {[%clk 0:02:59.4]} 2. Nc3 {[%clk 0:02:59.6]}
2... g6 {[%clk 0:02:58.2]} 3. d4 {[%clk 0:02:59.8]} 3... d5 {[%clk 0:02:57.8]}
4. Nf3 {[%clk 0:03:00.7]} 4... Bg7 {[%clk 0:02:57.5]} 5. e3 {[%clk 0:03:00.4]}
5... O-O {[%clk 0:02:57]} 6. cxd5 {[%clk 0:03:00.6]} 6... Nxd5 {[%clk
0:02:57.9]} 7. Bd3 {[%clk 0:03:01.2]} 7... c5 {[%clk 0:02:57.1]} 8. O-O {[%clk
0:03:00.6]} 8... Nc6 {[%clk 0:02:56.2]} 9. Nxd5 {[%clk 0:02:57.9]} 9... Qxd5
{[%clk 0:02:57.1]} 10. e4 {[%clk 0:02:58.8]} 10... Qh5 {[%clk 0:02:55.3]} 11. d5
{[%clk 0:02:59.3]} 11... Ne5 {[%clk 0:02:35.1]} 12. Nxe5 {[%clk 0:02:58.5]}
12... Qxe5 {[%clk 0:02:36]} 13. Rb1 {[%clk 0:02:55.2]} 13... f5 {[%clk
0:02:29.1]} 14. exf5 {[%clk 0:02:46.4]} 14... Bxf5 {[%clk 0:02:30]} 15. Re1
{[%clk 0:02:40.1]} 15... Qxd5 {[%clk 0:02:24.2]} 16. Bxf5 {[%clk 0:02:38.4]}
16... Qxf5 {[%clk 0:02:21.4]} 17. Be3 {[%clk 0:02:36.1]} 17... Kh8 {[%clk
0:02:16.1]} 18. b3 {[%clk 0:02:31.3]} 18... b6 {[%clk 0:02:15.8]} 19. Qe2 {[%clk
0:02:26.6]} 19... Rad8 {[%clk 0:02:14.5]} 20. Rbd1 {[%clk 0:02:25.5]} 20... Bc3
{[%clk 0:02:08.2]} 21. Rf1 {[%clk 0:02:24.2]} 21... e5 {[%clk 0:02:04.8]} 22.
Qc4 {[%clk 0:02:16.8]} 22... Bd4 {[%clk 0:01:58.8]} 23. Bxd4 {[%clk 0:02:06.9]}
23... cxd4 {[%clk 0:01:53.2]} 24. f3 {[%clk 0:02:02]} 24... Rc8 {[%clk
0:01:42.3]} 25. Qa6 {[%clk 0:02:01.3]} 25... Rc2 {[%clk 0:01:36.6]} 26. Kh1
{[%clk 0:02:01.3]} 26... Qg5 {[%clk 0:01:28.2]} 27. Rg1 {[%clk 0:02:01.2]} 27...
Rf7 {[%clk 0:01:25.8]} 28. Qb5 {[%clk 0:01:57.9]} 28... Kg7 {[%clk 0:01:21.9]}
29. a4 {[%clk 0:01:56.6]} 29... h5 {[%clk 0:01:18.7]} 30. Rxd4 {[%clk
0:01:56.1]} 30... Rc5 {[%clk 0:01:08.7]} 0-1

[Event "*** Titled Tuesday Blitz"]
[Site "Chess.com"]
[Date "2020.10.27"]
[Round "4"]
[White "Bodnar_Mykola"]
[Black "Evachess2006"]
[Result "1-0"]
[WhiteElo "2377"]
[BlackElo "1622"]
[TimeControl "180+1"]
[EndTime "10:36:22 PDT"]
[Termination "Bodnar_Mykola won on time"]

1. e4 {[%clk 0:03:00.9]} 1... e5 {[%clk 0:02:49.4]} 2. Nf3 {[%clk 0:02:54.3]}
2... Nc6 {[%clk 0:02:49.4]} 3. Bc4 {[%clk 0:02:53.8]} 3... Bc5 {[%clk
0:02:45.9]} 4. c3 {[%clk 0:02:54.2]} 4... d6 {[%clk 0:02:39.6]} 5. d4 {[%clk
0:02:53.9]} 5... exd4 {[%clk 0:02:38.1]} 6. cxd4 {[%clk 0:02:54.8]} 6... Bb6
{[%clk 0:02:35.5]} 7. Nc3 {[%clk 0:02:55.4]} 7... Nf6 {[%clk 0:02:26.5]} 8. h3
{[%clk 0:02:55.6]} 8... O-O {[%clk 0:02:20.8]} 9. O-O {[%clk 0:02:55.8]} 9...
Re8 {[%clk 0:02:15.5]} 10. Re1 {[%clk 0:02:54]} 10... Nxe4 {[%clk 0:02:05.3]}
11. Nxe4 {[%clk 0:02:47.3]} 11... d5 {[%clk 0:01:56.9]} 12. Bxd5 {[%clk
0:02:47.7]} 12... Bf5 {[%clk 0:01:34.5]} 13. Bxc6 {[%clk 0:02:46.8]} 13... bxc6
{[%clk 0:01:18.9]} 14. Ng3 {[%clk 0:02:46.1]} 14... Bg6 {[%clk 0:00:46.4]} 15.
Be3 {[%clk 0:02:43.9]} 15... Qd7 {[%clk 0:00:38.2]} 16. Qd2 {[%clk 0:02:42.8]}
16... Rad8 {[%clk 0:00:32.3]} 17. Ne5 {[%clk 0:02:43]} 17... Rxe5 {[%clk
0:00:18.5]} 18. dxe5 {[%clk 0:02:43.9]} 18... Qxd2 {[%clk 0:00:17.2]} 19. Bxd2
{[%clk 0:02:44.8]} 19... Rxd2 {[%clk 0:00:15.5]} 20. Rad1 {[%clk 0:02:45.7]}
20... Bxf2+ {[%clk 0:00:13]} 21. Kf1 {[%clk 0:02:45.3]} 21... Bxe1 {[%clk
0:00:10.3]} 22. Kxe1 {[%clk 0:02:46.2]} 22... Rxd1+ {[%clk 0:00:09.8]} 23. Kxd1
{[%clk 0:02:47.1]} 23... f6 {[%clk 0:00:10]} 24. exf6 {[%clk 0:02:47.3]} 24...
gxf6 {[%clk 0:00:10.8]} 25. Kd2 {[%clk 0:02:46.5]} 25... Kf7 {[%clk 0:00:11.7]}
26. Ke3 {[%clk 0:02:46.7]} 26... f5 {[%clk 0:00:12.1]} 27. Kd4 {[%clk
0:02:47.6]} 27... Ke6 {[%clk 0:00:10.6]} 28. Ne2 {[%clk 0:02:48.1]} 28... Kd7
{[%clk 0:00:10.6]} 29. Kc5 {[%clk 0:02:48.2]} 29... Bf7 {[%clk 0:00:10.2]} 30.
Nf4 {[%clk 0:02:49.1]} 30... Bxa2 {[%clk 0:00:09.7]} 31. Nd3 {[%clk 0:02:49.5]}
31... Bb1 {[%clk 0:00:09.6]} 32. Ne5+ {[%clk 0:02:49.5]} 32... Ke6 {[%clk
0:00:07.9]} 33. Nxc6 {[%clk 0:02:49.8]} 33... Be4 {[%clk 0:00:07.7]} 34. Nd4+
{[%clk 0:02:49.7]} 34... Kf6 {[%clk 0:00:05.7]} 35. g3 {[%clk 0:02:49.7]} 35...
Bg2 {[%clk 0:00:05.5]} 36. h4 {[%clk 0:02:49.5]} 36... Ke5 {[%clk 0:00:03.4]}
37. Ne2 {[%clk 0:02:50.4]} 37... Ke4 {[%clk 0:00:02.5]} 38. Nf4 {[%clk
0:02:51.3]} 38... Kf3 {[%clk 0:00:02.5]} 39. Nh5 {[%clk 0:02:48.6]} 39... Kg4
{[%clk 0:00:01.7]} 40. Nf6+ {[%clk 0:02:49.3]} 40... Kxg3 {[%clk 0:00:01.8]} 41.
Nxh7 {[%clk 0:02:50.2]} 1-0

[Event "*** Titled Tuesday Blitz"]
[Site "Chess.com"]
[Date "2020.10.27"]
[Round "4"]
[White "earling8018"]
[Black "Akhayan"]
[Result "0-1"]
[WhiteElo "2005"]
[BlackElo "2263"]
[TimeControl "180+1"]
[EndTime "10:36:28 PDT"]
[Termination "Akhayan won by resignation"]

1. d4 {[%clk 0:03:00.9]} 1... d5 {[%clk 0:02:59.7]} 2. c4 {[%clk 0:03:00.6]}
2... e6 {[%clk 0:02:59.4]} 3. Nc3 {[%clk 0:02:59.5]} 3... Nf6 {[%clk 0:02:58.4]}
4. Bg5 {[%clk 0:02:59.5]} 4... Be7 {[%clk 0:02:58]} 5. e3 {[%clk 0:02:59.5]}
5... O-O {[%clk 0:02:58.3]} 6. Nf3 {[%clk 0:02:59.2]} 6... h6 {[%clk 0:02:58.5]}
7. Bf4 {[%clk 0:02:57]} 7... c5 {[%clk 0:02:57.4]} 8. cxd5 {[%clk 0:02:53.4]}
8... cxd4 {[%clk 0:02:53]} 9. Nxd4 {[%clk 0:02:48.1]} 9... Nxd5 {[%clk
0:02:47.2]} 10. Nxd5 {[%clk 0:02:45.1]} 10... exd5 {[%clk 0:02:47.3]} 11. Be2
{[%clk 0:02:39.9]} 11... Bb4+ {[%clk 0:02:46.2]} 12. Kf1 {[%clk 0:02:39.7]}
12... Nc6 {[%clk 0:02:45.6]} 13. h4 {[%clk 0:02:32.2]} 13... Bd6 {[%clk
0:02:35.5]} 14. Bxd6 {[%clk 0:02:22.1]} 14... Qxd6 {[%clk 0:02:35]} 15. g3
{[%clk 0:02:09.7]} 15... Ne5 {[%clk 0:02:34.2]} 16. Kg2 {[%clk 0:02:04.7]} 16...
Bd7 {[%clk 0:02:31.9]} 17. Bf3 {[%clk 0:01:37.2]} 17... Rac8 {[%clk 0:02:27.6]}
18. Qe2 {[%clk 0:01:35.6]} 18... a6 {[%clk 0:02:24]} 19. Rac1 {[%clk 0:01:35]}
19... Qf6 {[%clk 0:02:16.4]} 20. Bxd5 {[%clk 0:00:57.4]} 20... Bg4 {[%clk
0:02:12.8]} 21. f3 {[%clk 0:00:56.8]} 21... Bd7 {[%clk 0:02:10.7]} 22. Bxb7
{[%clk 0:00:49.7]} 22... Rb8 {[%clk 0:02:10]} 23. Be4 {[%clk 0:00:43.6]} 23...
Rfe8 {[%clk 0:02:05.6]} 24. Bd5 {[%clk 0:00:35.3]} 24... Qd6 {[%clk 0:02:03.2]}
25. e4 {[%clk 0:00:31.8]} 25... Qb4 {[%clk 0:01:55.7]} 26. Qd2 {[%clk
0:00:29.7]} 26... Qxd2+ {[%clk 0:01:53.3]} 0-1

[Event "*** Titled Tuesday Blitz"]
[Site "Chess.com"]
[Date "2020.10.27"]
[Round "4"]
[White "midedu"]
[Black "LogoCzar"]
[Result "1-0"]
[WhiteElo "2016"]
[BlackElo "2379"]
[TimeControl "180+1"]
[EndTime "10:36:32 PDT"]
[Termination "midedu won by resignation"]

1. e4 {[%clk 0:03:00.9]} 1... e5 {[%clk 0:02:58.2]} 2. Nf3 {[%clk 0:03:00.4]}
2... Nc6 {[%clk 0:02:57.9]} 3. Bc4 {[%clk 0:02:59.9]} 3... Nf6 {[%clk
0:02:57.7]} 4. d3 {[%clk 0:02:59.7]} 4... Bc5 {[%clk 0:02:57.3]} 5. c3 {[%clk
0:02:59.6]} 5... a6 {[%clk 0:02:56.9]} 6. O-O {[%clk 0:02:59.3]} 6... d6 {[%clk
0:02:56.9]} 7. a4 {[%clk 0:02:58.2]} 7... Ba7 {[%clk 0:02:56.7]} 8. Nbd2 {[%clk
0:02:56.8]} 8... O-O {[%clk 0:02:53.5]} 9. Re1 {[%clk 0:02:56.8]} 9... Ng4
{[%clk 0:02:53.2]} 10. Re2 {[%clk 0:02:56.2]} 10... Kh8 {[%clk 0:02:53.2]} 11.
h3 {[%clk 0:02:56]} 11... f5 {[%clk 0:02:53.4]} 12. exf5 {[%clk 0:02:48]} 12...
Nh6 {[%clk 0:02:53]} 13. g4 {[%clk 0:02:45.2]} 13... Nxf5 {[%clk 0:02:52.9]} 14.
gxf5 {[%clk 0:02:44.6]} 14... Bxf5 {[%clk 0:02:52.8]} 15. Kh2 {[%clk 0:02:32.3]}
15... Qf6 {[%clk 0:02:42.6]} 16. Bd5 {[%clk 0:02:26.2]} 16... Ne7 {[%clk
0:02:40.4]} 17. Be4 {[%clk 0:02:25.9]} 17... d5 {[%clk 0:02:40.1]} 18. Bxf5
{[%clk 0:02:25.2]} 18... Qxf5 {[%clk 0:02:39]} 19. Qg1 {[%clk 0:02:19.8]} 19...
Ng6 {[%clk 0:02:34]} 20. Qg4 {[%clk 0:02:17.4]} 20... Qf6 {[%clk 0:02:32.5]} 21.
d4 {[%clk 0:02:09.8]} 21... e4 {[%clk 0:02:32]} 22. Ng1 {[%clk 0:01:57.7]} 22...
Nf4 {[%clk 0:02:28.6]} 23. Re3 {[%clk 0:01:46.8]} 23... Rf7 {[%clk 0:02:27.6]}
24. f3 {[%clk 0:01:43.5]} 24... h5 {[%clk 0:02:23.1]} 25. Qg3 {[%clk 0:01:40.8]}
25... h4 {[%clk 0:02:10.1]} 26. Qg4 {[%clk 0:01:38.4]} 26... Ne6 {[%clk
0:02:01]} 27. Kh1 {[%clk 0:01:29.8]} 27... c5 {[%clk 0:01:52.8]} 28. fxe4 {[%clk
0:01:25.9]} 28... cxd4 {[%clk 0:01:52.6]} 29. Rf3 {[%clk 0:01:25.1]} 29... Qe7
{[%clk 0:01:49.9]} 30. Qh5+ {[%clk 0:01:18.9]} 30... Kg8 {[%clk 0:01:48]} 31.
Rxf7 {[%clk 0:01:18.2]} 31... Qxf7 {[%clk 0:01:47.3]} 32. Qxf7+ {[%clk
0:01:18.3]} 32... Kxf7 {[%clk 0:01:47.6]} 33. exd5 {[%clk 0:01:18.6]} 33... Nf4
{[%clk 0:01:47.2]} 34. Ndf3 {[%clk 0:01:12.2]} 34... Nd3 {[%clk 0:01:40.5]} 35.
cxd4 {[%clk 0:01:08.6]} 35... Rc8 {[%clk 0:01:36.1]} 36. Ne5+ {[%clk 0:01:01]}
36... Nxe5 {[%clk 0:01:31.7]} 37. dxe5 {[%clk 0:01:00.8]} 1-0